Workbook

Sheet 5 кл
A1: поступающие в 5 класс
A2: Рейтинг | B2: код | C2: математика и логика | D2: русский язык | E2: итог
A3: 1 | B3: 5063 | C3: 17 | D3: 13.5 | E3: =C3+D3 -> 30.5
A4: 2 | B4: 5037 | C4: 15 | D4: 14 | E4: =C4+D4 -> 29
A5: 3 | B5: 5028 | C5: 11 | D5: 15 | E5: =C5+D5 -> 26
A6: 4 | B6: 5054 | C6: 14 | D6: 12 | E6: =C6+D6 -> 26
A7: 5 | B7: 5042 | C7: 13 | D7: 12 | E7: =C7+D7 -> 25
A8: 6 | B8: 5047 | C8: 11 | D8: 14 | E8: =C8+D8 -> 25
A9: 7 | B9: 5058 | C9: 12 | D9: 13 | E9: =C9+D9 -> 25
A10: 8 | B10: 5036 | C10: 12 | D10: 12.5 | E10: =C10+D10 -> 24.5
A11: 9 | B11: 5024 | C11: 12 | D11: 12 | E11: =C11+D11 -> 24
A12: 10 | B12: 5030 | C12: 10 | D12: 14 | E12: =C12+D12 -> 24
A13: 11 | B13: 5064 | C13: 11 | D13: 13 | E13: =C13+D13 -> 24
A14: 12 | B14: 5068 | C14: 13 | D14: 11 | E14: =C14+D14 -> 24
A15: 13 | B15: 5027 | C15: 10 | D15: 13 | E15: =C15+D15 -> 23
A16: 14 | B16: 5049 | C16: 10 | D16: 13 | E16: =C16+D16 -> 23
A17: 15 | B17: 5060 | C17: 10 | D17: 13 | E17: =C17+D17 -> 23
A18: 16 | B18: 5002 | C18: 11 | D18: 11 | E18: =C18+D18 -> 22
A19: 17 | B19: 5013 | C19: 14 | D19: 7.5 | E19: =C19+D19 -> 21.5
A20: 18 | B20: 5033 | C20: 10 | D20: 11.5 | E20: =C20+D20 -> 21.5
A21: 19 | B21: 5032 | C21: 9 | D21: 12 | E21: =C21+D21 -> 21
A22: 20 | B22: 5055 | C22: 10 | D22: 11 | E22: =C22+D22 -> 21
A23: 21 | B23: 5062 | C23: 13 | D23: 8 | E23: =C23+D23 -> 21
A24: 22 | B24: 5050 | C24: 11 | D24: 9.5 | E24: =C24+D24 -> 20.5
A25: 23 | B25: 5001 | C25: 11 | D25: 9 | E25: 20
A26: 24 | B26: 5012 | C26: 11 | D26: 9 | E26: 20
A27: 25 | B27: 5008 | C27: 8 | D27: 12 | E27: =C27+D27 -> 20
A28: 26 | B28: 5057 | C28: 9 | D28: 11 | E28: =C28+D28 -> 20
A29: 27 | B29: 5059 | C29: 9 | D29: 11 | E29: =C29+D29 -> 20
A30: 28 | B30: 5067 | C30: 6 | D30: 13.5 | E30: =C30+D30 -> 19.5
A31: 29 | B31: 5005 | C31: 7 | D31: 12 | E31: =C31+D31 -> 19
A32: 30 | B32: 5010 | C32: 9 | D32: 10 | E32: =C32+D32 -> 19
A33: 31 | B33: 5022 | C33: 6 | D33: 13 | E33: =C33+D33 -> 19
A34: 32 | B34: 5029 | C34: 6 | D34: 13 | E34: =C34+D34 -> 19
A35: 33 | B35: 5041 | C35: 8 | D35: 11 | E35: =C35+D35 -> 19
A36: 34 | B36: 5011 | C36: 7 | D36: 11 | E36: =C36+D36 -> 18
A37: 35 | B37: 5014 | C37: 5 | D37: 13 | E37: =C37+D37 -> 18
A38: 36 | B38: 5052 | C38: 6 | D38: 12 | E38: =C38+D38 -> 18
A39: 37 | B39: 5019 | C39: 9 | D39: 8 | E39: =C39+D39 -> 17
A40: 38 | B40: 5026 | C40: 8 | D40: 9 | E40: =C40+D40 -> 17
A41: 39 | B41: 5065 | C41: 8 | D41: 9 | E41: =C41+D41 -> 17
A42: 40 | B42: 5025 | C42: 6 | D42: 10.5 | E42: =C42+D42 -> 16.5
A43: 41 | B43: 5045 | C43: 4 | D43: 12 | E43: =C43+D43 -> 16
A44: 42 | B44: 5031 | C44: 9 | D44: 6.5 | E44: =C44+D44 -> 15.5
A45: 43 | B45: 5066 | C45: 6 | D45: 9.5 | E45: =C45+D45 -> 15.5
A46: 44 | B46: 5006 | C46: 9 | D46: 6 | E46: =C46+D46 -> 15
A47: 45 | B47: 5003 | C47: 5 | D47: 9.5 | E47: =C47+D47 -> 14.5
A48: 46 | B48: 5046 | C48: 4 | D48: 10.5 | E48: =C48+D48 -> 14.5
A49: 47 | B49: 5004 | C49: 6 | D49: 7 | E49: =C49+D49 -> 13
A50: 48 | B50: 5021 | C50: 4 | D50: 9 | E50: =C50+D50 -> 13
A51: 49 | B51: 5043 | C51: 3 | D51: 10 | E51: =C51+D51 -> 13
A52: 50 | B52: 5051 | C52: 2 | D52: 11 | E52: =C52+D52 -> 13
A53: 51 | B53: 5061 | C53: 3 | D53: 10 | E53: =C53+D53 -> 13
A54: 52 | B54: 5070 | C54: 4 | D54: 7 | E54: =C54+D54 -> 11
A55: 53 | B55: 5039 | C55: 6 | D55: 4 | E55: =C55+D55 -> 10
A56: 54 | B56: 5009 | C56: 0 | D56: 9 | E56: =C56+D56 -> 9
A57: 55 | B57: 5017 | C57: 3 | D57: 6 | E57: =C57+D57 -> 9
A58: 56 | B58: 5040 | C58: 4 | D58: 5 | E58: =C58+D58 -> 9
A59: 57 | B59: 5018 | C59: 0 | D59: 8 | E59: =C59+D59 -> 8
A60: 58 | B60: 5069 | C60: 2 | D60: 4 | E60: =C60+D60 -> 6

Sheet 6 кл
A1: поступающие в 6 класс
A2: рейтинг | B2: код | C2: математика и логика | D2: русский язык | E2: итог
A3: 1 | B3: 6033 | C3: 25 | D3: 14 | E3: 39
A4: 2 | B4: 6015 | C4: 21 | D4: 13 | E4: 34
A5: 3 | B5: 6035 | C5: 22 | D5: 12 | E5: 34
A6: 4 | B6: 6050 | C6: 25 | D6: 8.5 | E6: 33.5
A7: 5 | B7: 6010 | C7: 20 | D7: 13 | E7: 33
A8: 6 | B8: 6047 | C8: 16 | D8: 10.5 | E8: 26.5
A9: 7 | B9: 6001 | C9: 16 | D9: 8.5 | E9: 24.5
A10: 8 | B10: 6048 | C10: 15 | D10: 9.5 | E10: 24.5
A11: 9 | B11: 6020 | C11: 13 | D11: 11 | E11: 24
A12: 10 | B12: 6051 | C12: 12 | D12: 12 | E12: 24
A13: 11 | B13: 6041 | C13: 10 | D13: 13 | E13: 23
A14: 12 | B14: 6005 | C14: 11 | D14: 11 | E14: 22
A15: 13 | B15: 6031 | C15: 10 | D15: 12 | E15: 22
A16: 14 | B16: 6040 | C16: 11 | D16: 10 | E16: 21
A17: 15 | B17: 6036 | C17: 11 | D17: 9.5 | E17: 20.9
A18: 16 | B18: 6016 | C18: 13 | D18: 6.5 | E18: 19.5
A19: 17 | B19: 6055 | C19: 10 | D19: 9.5 | E19: 19.5
A20: 18 | B20: 6008 | C20: 6 | D20: 13 | E20: 19
A21: 19 | B21: 6018 | C21: 10 | D21: 9 | E21: 19
A22: 20 | B22: 6012 | C22: 6 | D22: 12.5 | E22: 18.5
A23: 21 | B23: 6042 | C23: 5 | D23: 13 | E23: 18
A24: 22 | B24: 6049 | C24: 9 | D24: 9 | E24: 18
A25: 23 | B25: 6002 | C25: 5 | D25: 10.5 | E25: 15.5
A26: 24 | B26: 6052 | C26: 6 | D26: 9.5 | E26: 15.5
A27: 25 | B27: 6009 | C27: 6 | D27: 9 | E27: 15
A28: 26 | B28: 6029 | C28: 6 | D28: 9 | E28: 15
A29: 27 | B29: 6039 | C29: 5 | D29: 10 | E29: 15
A30: 28 | B30: 6007 | C30: 5 | D30: 9 | E30: 14
A31: 29 | B31: 6011 | C31: 5 | D31: 9 | E31: 14
A32: 30 | B32: 6038 | C32: 9 | D32: 4.5 | E32: 13.5
A33: 31 | B33: 6006 | C33: 6 | D33: 7 | E33: 13
A34: 32 | B34: 6014 | C34: 5 | D34: 8 | E34: 13
A35: 33 | B35: 6032 | C35: 8 | D35: 4.5 | E35: 12.5
A36: 34 | B36: 6053 | C36: 5 | D36: 7.5 | E36: 12.5
A37: 35 | B37: 6004 | C37: 4 | D37: 8 | E37: 12
A38: 36 | B38: 6028 | C38: 5 | D38: 7 | E38: 12
A39: 37 | B39: 6043 | C39: 8 | D39: 3 | E39: 11
A40: 38 | B40: 6027 | C40: 1 | D40: 8.5 | E40: 9.5
A41: 39 | B41: 6003 | C41: 1 | D41: 8 | E41: 9
A42: 40 | B42: 6044 | C42: 2 | D42: 7 | E42: 9
A43: 41 | B43: 6046 | C43: 5 | D43: 4 | E43: 9
A44: 42 | B44: 6024 | C44: 1 | D44: 6 | E44: 7
A45: 43 | B45: 6054 | C45: 0 | D45: 5.5 | E45: 5.5
A46: 44 | B46: 6017 | C46: 0 | D46: 5 | E46: 5
A47: 45 | B47: 6030 | C47: 0 | D47: 3.5 | E47: 3.5
A48: 46 | B48: 6025 | D48: 5

Sheet 7 кл
A1: поступающие в 7 класс
A2: рейтинг | B2: код | C2: математика и логика | D2: русский язык | E2: итог
A3: 1 | B3: 7022 | C3: 13 | D3: 10,5 | E3: =C3+D3 -> 23.5
A4: 2 | B4: 7024 | C4: 9 | D4: 14 | E4: 23
A5: 3 | B5: 7036 | C5: 7 | D5: 15 | E5: 22
A6: 4 | B6: 7005 | C6: 7 | D6: 14 | E6: 21
A7: 5 | B7: 7012 | C7: 5 | D7: 15 | E7: 20
A8: 6 | B8: 7010 | C8: 4 | D8: 15 | E8: 19
A9: 7 | B9: 7016 | C9: 7 | D9: 12 | E9: 19
A10: 8 | B10: 7042 | C10: 8 | D10: 10,5 | E10: 18.5
A11: 9 | B11: 7028 | C11: 6 | D11: 12 | E11: 18
A12: 10 | B12: 7034 | C12: 8 | D12: 9,5 | E12: 17.5
A13: 11 | B13: 7041 | C13: 7 | D13: 10,5 | E13: 17.5
A14: 12 | B14: 7001 | C14: 7 | D14: 10,5 | E14: =C14+D14 -> 17.5
A15: 13 | B15: 7031 | C15: 11 | D15: 6 | E15: 17
A16: 14 | B16: 7006 | C16: 5 | D16: 11,5 | E16: 16.5
A17: 15 | B17: 7018 | C17: 2 | D17: 14 | E17: 16
A18: 16 | B18: 7025 | C18: 3 | D18: 13 | E18: 16
A19: 17 | B19: 7015 | C19: 3.5 | D19: 12 | E19: 15.5
A20: 18 | B20: 7045 | C20: 2 | D20: 13,5 | E20: 15.5
A21: 19 | B21: 7014 | C21: 1 | D21: 14 | E21: 15
A22: 20 | B22: 7033 | C22: 0 | D22: 15 | E22: 15
A23: 21 | B23: 7004 | C23: 4 | D23: 9,5 | E23: 13.5
A24: 22 | B24: 7007 | C24: 1 | D24: 12,5 | E24: 13.5
A25: 23 | B25: 7013 | C25: 0 | D25: 13 | E25: 13
A26: 24 | B26: 7043 | C26: 4 | D26: 8,5 | E26: 12.5
A27: 25 | B27: 7017 | C27: 6 | D27: 6 | E27: 12
A28: 26 | B28: 7037 | C28: 1 | D28: 10,5 | E28: 11.5
A29: 27 | B29: 7039 | C29: 5 | D29: 6 | E29: 11
A30: 28 | B30: 7008 | C30: 1 | D30: 9 | E30: 10
A31: 29 | B31: 7040 | C31: 3 | D31: 7 | E31: 10
A32: 30 | B32: 7021 | C32: 4 | D32: 6 | E32: 10
A33: 31 | B33: 7023 | C33: 6 | D33: 3 | E33: 9
A34: 32 | B34: 7009 | C34: 1 | D34: 7 | E34: 8
A35: 33 | B35: 7026 | C35: 5 | D35: 3 | E35: 8
A36: 34 | B36: 7020 | C36: 2 | D36: 5,5 | E36: 7.5
A37: 35 | B37: 7003 | C37: 2 | D37: 5 | E37: 7
A38: 36 | B38: 7019 | C38: 3 | D38: 3 | E38: 6
A39: 37 | B39: 7044 | C39: 0 | D39: 5 | E39: 5
A40: 38 | B40: 7002 | C40: 1 | D40: 1 | E40: 2

Sheet 8 кл
A1: поступающие в 8 класс
A2: рейтинг | B2: код | C2: математика и логика | D2: русский язык | E2: итог
A3: 1 | B3: 8016 | C3: 20 | D3: 15 | E3: =C3+D3 -> 35
A4: 2 | B4: 8018 | C4: 21 | D4: 14 | E4: =C4+D4 -> 35
A5: 3 | B5: 8010 | C5: 12 | D5: 13 | E5: =C5+D5 -> 25
A6: 4 | B6: 8013 | C6: 10 | D6: 14 | E6: =C6+D6 -> 24
A7: 5 | B7: 8014 | C7: 10 | D7: 12 | E7: =C7+D7 -> 22
A8: 6 | B8: 8015 | C8: 8 | D8: 14 | E8: =C8+D8 -> 22
A9: 7 | B9: 8006 | C9: 9 | D9: 12 | E9: =C9+D9 -> 21
A10: 8 | B10: 8017 | C10: 9 | D10: 12 | E10: =C10+D10 -> 21
A11: 9 | B11: 8004 | C11: 9 | D11: 12 | E11: =C11+D11 -> 21
A12: 10 | B12: 8005 | C12: 9 | D12: 11 | E12: =C12+D12 -> 20
A13: 11 | B13: 8011 | C13: 8 | D13: 12 | E13: =C13+D13 -> 20
A14: 12 | B14: 8025 | C14: 5 | D14: 15 | E14: =C14+D14 -> 20
A15: 13 | B15: 8003 | C15: 7 | D15: 12 | E15: =C15+D15 -> 19
A16: 14 | B16: 8020 | C16: 8 | D16: 10 | E16: =C16+D16 -> 18
A17: 15 | B17: 8008 | C17: 6 | D17: 11 | E17: =C17+D17 -> 17
A18: 16 | B18: 8009 | C18: 6 | D18: 11 | E18: =C18+D18 -> 17
A19: 17 | B19: 8022 | C19: 4 | D19: 13 | E19: =C19+D19 -> 17
A20: 18 | B20: 8027 | C20: 6 | D20: 11 | E20: =C20+D20 -> 17
A21: 19 | B21: 8029 | C21: 10 | D21: 7 | E21: =C21+D21 -> 17
A22: 20 | B22: 8023 | C22: 5 | D22: 10 | E22: =C22+D22 -> 15
A23: 21 | B23: 8028 | C23: 3 | D23: 12 | E23: =C23+D23 -> 15
A24: 22 | B24: 8007 | C24: 2 | D24: 12 | E24: =C24+D24 -> 14
A25: 23 | B25: 8024 | C25: 2 | D25: 11 | E25: =C25+D25 -> 13
A26: 24 | B26: 8026 | C26: 1 | D26: 11 | E26: =C26+D26 -> 12
A27: 25 | B27: 8030 | C27: 8 | D27: 4 | E27: =C27+D27 -> 12
A28: 26 | B28: 8002 | C28: 6 | D28: 4 | E28: =C28+D28 -> 10
A29: 27 | B29: 8031 | C29: 3 | D29: 7 | E29: =C29+D29 -> 10

Sheet 9 кл
A1: поступающие в 9 класс
A2: рейтинг | B2: код | C2: математика и логика | D2: русский язык | E2: итог
A3: 1 | B3: 9021 | C3: 20.5 | D3: 15 | E3: =C3+D3 -> 35.5
A4: 2 | B4: 9010 | C4: 21 | D4: 12 | E4: =C4+D4 -> 33
A5: 3 | B5: 9025 | C5: 15.5 | D5: 11 | E5: =C5+D5 -> 26.5
A6: 4 | B6: 9017 | C6: 12 | D6: 14 | E6: =C6+D6 -> 26
A7: 5 | B7: 9013 | C7: 11.5 | D7: 14 | E7: =C7+D7 -> 25.5
A8: 6 | B8: 9024 | C8: 14 | D8: 10 | E8: =C8+D8 -> 24
A9: 7 | B9: 9004 | C9: 11 | D9: 11 | E9: =C9+D9 -> 22
A10: 8 | B10: 9018 | C10: 6.5 | D10: 14 | E10: =C10+D10 -> 20.5
A11: 9 | B11: 9001 | C11: 9 | D11: 11 | E11: =C11+D11 -> 20
A12: 10 | B12: 9023 | C12: 11 | D12: 9 | E12: =C12+D12 -> 20
A13: 11 | B13: 9008 | C13: 11.5 | D13: 8 | E13: =C13+D13 -> 19.5
A14: 12 | B14: 9005 | C14: 11 | D14: 7 | E14: =C14+D14 -> 18
A15: 13 | B15: 9030 | C15: 11 | D15: 6 | E15: =C15+D15 -> 17
A16: 14 | B16: 9011 | C16: 4 | D16: 11 | E16: =C16+D16 -> 15
A17: 15 | B17: 9012 | C17: 5 | D17: 9 | E17: =C17+D17 -> 14
A18: 16 | B18: 9015 | C18: 0.5 | D18: 13 | E18: =C18+D18 -> 13.5
A19: 17 | B19: 9006 | C19: 3 | D19: 10 | E19: =C19+D19 -> 13
A20: 18 | B20: 9016 | C20: 2.5 | D20: 10 | E20: =C20+D20 -> 12.5
A21: 19 | B21: 9029 | C21: 3 | D21: 9 | E21: =C21+D21 -> 12
A22: 20 | B22: 9009 | C22: 2 | D22: 9 | E22: =C22+D22 -> 11
A23: 21 | B23: 9022 | C23: 2 | D23: 8 | E23: =C23+D23 -> 10
A24: 22 | B24: 9028 | C24: 0 | D24: 10 | E24: =C24+D24 -> 10
A25: 23 | B25: 9026 | C25: 1 | D25: 8.5 | E25: =C25+D25 -> 9.5
A26: 24 | B26: 9027 | C26: 1.5 | D26: 7.5 | E26: =C26+D26 -> 9
A27: 25 | B27: 9007 | C27: 0 | D27: 8.5 | E27: =C27+D27 -> 8.5
A28: 26 | B28: 9019 | C28: 0 | D28: 4 | E28: =C28+D28 -> 4
